bitfinex/quotes_ETHUSD_20240621
["timestamp","ask_amount","ask_price","bid_price","bid_amount"]
[1718954649679,1.75296075,3517.9,3517.5,0.02521735]
[1718954649921,1.47388637,3517.8,3517.5,0.02521735]
[1718954650203,1.7529798,3517.7,3517.6,0.02521735]
[1718954650375,5.7529798,3517.7,3517.3,2.2855]
[1718954650583,2.34961704,3517.6,3517.3,2.2855]
[1718954650776,0.49244339,3517.5,3517.4,0.872]
[1718954650973,0.49244339,3517.6,3517.4,0.89721735]
[1718954651416,4.0,3517.5,3517.4,0.89721735]
[1718954651712,4.49244339,3517.5,3517.4,0.89721735]
[1718954652068,4.0,3517.5,3517.4,0.89721735]
[1718954652268,4.49240062,3517.5,3517.4,0.89721735]
[1718954652537,4.0,3517.5,3517.4,0.89721735]
[1718954652775,4.49240363,3517.5,3517.4,0.89721735]
[1718954654348,4.0,3517.5,3517.4,0.89721735]
[1718954654603,4.4924179,3517.5,3517.4,0.89721735]
[1718954654771,4.4924179,3517.5,3517.4,0.02521735]
[1718954654971,4.4924179,3517.5,3517.3,2.2855]
[1718954655179,0.4924179,3517.4,3517.3,2.2855]
[1718954655435,4.4924179,3517.4,3517.3,2.2855]
[1718954655809,4.49242634,3517.4,3517.3,2.2855]
[1718954656566,4.49242634,3517.4,3516.7,2.3286]
[1718954656845,4.0,3517.4,3517.3,0.02579071]
[1718954657048,4.49243528,3517.4,3517.1,0.872]
[1718954657266,4.0,3517.4,3517.3,0.02579071]
[1718954657557,4.49243562,3517.4,3517.1,0.872]
[1718954657741,4.0,3517.4,3517.3,0.02579071]
[1718954657916,4.49243568,3517.4,3517.1,0.872]
[1718954658114,4.0,3517.4,3517.2,0.02579071]
[1718954660206,4.0,3517.4,3517.2,2.50769071]
[1718954660732,4.0,3517.4,3517.2,3.37969071]
[1718954663330,0.49242064,3517.3,3517.2,3.37969071]
[1718954663561,0.49242064,3517.3,3517.2,6.37969071]
[1718954668380,0.49242036,3517.3,3517.2,6.37969071]
[1718954668783,0.49240344,3517.3,3517.2,5.50769071]
[1718954668932,0.49240344,3517.3,3517.2,6.37969071]
[1718954669451,0.49243297,3517.3,3517.2,6.37969071]
[1718954671274,0.49243329,3517.3,3517.2,6.37969071]
[1718954674691,0.49243329,3517.3,3517.2,3.89779071]
[1718954674899,0.49243329,3517.3,3517.2,0.89779071]
[1718954675190,0.49243329,3517.3,3517.2,3.89779071]
[1718954675349,0.49243329,3517.3,3517.2,0.89779071]
[1718954677704,0.872,3518.1,3517.2,0.89779071]
[1718954677980,2.374,3517.7,3517.2,0.02579071]
[1718954678194,1.75156046,3517.6,3517.2,0.02579071]
[1718954678352,1.75156046,3517.5,3517.2,0.02579071]
[1718954678552,1.75155954,3517.4,3517.2,0.02579071]
[1718954678753,2.374,3517.7,3517.2,0.02579071]
[1718954678954,1.75170799,3517.6,3517.2,0.02579071]
[1718954679254,1.75170799,3517.5,3517.2,0.02579071]
[1718954679608,1.75170799,3517.4,3517.2,0.02579071]
[1718954679759,1.75170799,3517.3,3517.2,0.02579071]
[1718954680794,1.7517114,3517.3,3517.2,0.02579071]
[1718954683104,2.443,3518.9,3517.3,2.303]
[1718954683299,2.443,3519.2,3518.6,0.872]
[1718954683664,2.443,3519.2,3518.4,0.872]
[1718954684308,2.443,3519.2,3518.5,0.02637606]
[1718954684604,0.36021408,3519.1,3518.5,0.02637606]
[1718954692173,1.23221408,3519.1,3518.2,3.175]
[1718954692373,1.23221408,3519.1,3518.3,0.02596909]
[1718954693035,0.49226715,3519.0,3518.3,0.02596909]
[1718954693245,0.36021408,3519.1,3518.3,0.02596909]
[1718954693534,0.36752141,3519.0,3518.3,0.02596909]
[1718954693698,2.306,3518.9,3518.3,0.02596909]
[1718954693897,0.4922666,3518.8,3518.1,7.37]
[1718954694098,0.4922666,3518.8,3518.4,0.02555048]
[1718954694293,0.4922666,3518.8,3518.1,7.37]
[1718954694498,0.27982666,3518.7,3518.5,0.02555048]
[1718954694690,0.27982666,3518.7,3518.1,7.37]
[1718954694902,0.27982666,3518.7,3518.6,0.02555048]
[1718954695552,0.27982666,3518.7,3518.1,7.37]
[1718954695706,0.27982666,3518.7,3518.6,0.02555048]
[1718954695909,0.27022666,3518.7,3518.1,7.37]
[1718954696528,0.27022666,3518.7,3518.2,0.02555048]
[1718954698840,0.27022666,3518.7,3518.0,3.872]
[1718954699019,0.27022666,3518.7,3518.3,0.02560084]
[1718954699343,0.27022666,3518.7,3518.0,3.872]
[1718954699836,0.27022666,3518.7,3518.1,0.02560084]
[1718954700048,0.27022666,3518.7,3518.2,0.872]
[1718954700214,2.27382,3518.3,3518.2,0.872]
[1718954700404,7.31375677,3518.3,3518.2,0.872]
[1718954700606,6.82146,3518.3,3518.2,0.872]
[1718954700849,6.82146,3518.3,3518.2,1.48923]
[1718954701005,7.3137039,3518.3,3518.2,1.48923]
[1718954701642,6.82146,3518.3,3518.2,1.48923]
[1718954703049,8.88881439,3518.3,3518.2,1.48923]
[1718954703264,6.61499439,3518.3,3518.2,1.48923]
[1718954703465,2.27382,3518.3,3518.2,6.80593]
[1718954704010,4.54764,3518.3,3518.2,6.80593]
[1718954704868,2.27382,3518.3,3518.2,6.80593]
[1718954706117,2.27379,3518.4,3518.2,6.80593]
[1718954706447,2.27379,3518.4,3518.3,1.779992]
[1718954706654,2.27379,3518.4,3518.3,4.779992]
[1718954706813,2.27358,3518.7,3518.4,2.3404]
[1718954707010,2.27333,3519.1,3518.7,2.3404]
[1718954707011,4.547,3518.8,3518.7,2.3404]
[1718954707256,4.547,3518.8,3518.7,2.96164]
[1718954707439,4.547,3518.8,3518.7,2.987051]
[1718954710323,4.547,3518.8,3518.7,5.987051]
[1718954710324,2.2735,3518.8,3518.7,5.987051]
[1718954711865,4.547,3518.8,3518.7,5.987051]
[1718954712324,2.2735,3518.8,3518.7,5.987051]
[1718954714753,4.547,3518.8,3518.7,5.987051]
[1718954717051,2.2735,3518.8,3518.7,5.987051]
[1718954722580,2.27337,3519.0,3518.7,5.987051]
[1718954722792,2.27337,3519.0,3518.9,0.872]
[1718954722970,2.27327,3519.2,3518.9,0.872]
[1718954723189,2.27331,3519.1,3519.0,2.4652]
[1718954723397,2.27331,3519.1,3519.0,3.3372]
[1718954723574,2.27331,3519.1,3519.0,4.06439465]
[1718954723806,2.27331,3519.1,3519.0,7.06439465]
[1718954725803,4.54662,3519.1,3519.0,7.06439465]
[1718954728494,4.54662,3519.1,3519.0,4.59919465]
[1718954728814,4.54662,3519.1,3519.0,1.59919465]
[1718954729020,4.54662,3519.1,3519.0,0.89688414]
[1718954729176,5.03870132,3519.1,3519.0,0.89688414]
[1718954729473,4.54662,3519.1,3519.0,0.89688414]
[1718954731713,4.54662,3519.1,3519.0,0.872]
[1718954731899,5.03869936,3519.1,3519.0,0.872]
[1718954733218,5.03869896,3519.1,3519.0,0.872]
[1718954733397,5.03869896,3519.1,3519.0,1.48695]
[1718954733717,5.03869279,3519.1,3519.0,1.48695]
[1718954734254,5.03869211,3519.1,3519.0,1.48695]
[1718954735717,0.49207211,3519.1,3519.0,1.48695]
[1718954735903,4.64349,3519.9,3519.0,1.48695]
[1718954735904,0.49207211,3519.8,3519.1,2.4383]
[1718954736261,2.06651547,3519.7,3519.1,5.886995]
[1718954736414,0.49203077,3519.6,3519.1,5.886995]
[1718954736618,0.49203077,3519.6,3519.5,0.872]
[1718954736817,2.55861142,3519.8,3519.5,0.872]
[1718954736981,2.55861142,3519.7,3519.2,3.6501945]
[1718954737178,2.55861142,3519.6,3519.2,3.6501945]
[1718954737377,4.64349,3519.9,3519.5,0.872]
[1718954737621,2.55867415,3519.8,3519.2,3.0]
[1718954737921,4.64349,3519.9,3519.1,2.4383]
[1718954737922,2.55867415,3519.7,3519.1,2.4383]
[1718954738139,2.55867415,3519.6,3519.2,0.24383]
[1718954738442,0.49205255,3519.5,3519.2,3.24383]
[1718954738584,0.49205255,3519.8,3519.4,0.872]
[1718954738780,2.0665907,3519.7,3519.3,0.268213]
[1718954738977,0.49205255,3519.6,3519.3,0.268213]
[1718954739246,0.49205255,3519.6,3519.5,0.872]
[1718954739404,2.06656692,3519.6,3519.5,0.872]
[1718954739716,2.55861947,3519.6,3519.5,0.872]
[1718954739935,2.55861947,3519.6,3519.2,3.0]
[1718954740110,2.3185,3520.2,3519.5,0.872]
[1718954740312,2.79059859,3520.1,3519.8,0.872]
[1718954740504,2.55874859,3520.0,3519.8,0.872]
[1718954740709,2.3185,3520.2,3519.8,0.872]
[1718954740710,2.55874859,3519.9,3519.8,0.872]
[1718954742226,2.06668208,3519.9,3519.8,0.872]
[1718954742452,2.55872709,3519.9,3519.8,0.872]
[1718954742905,2.55873149,3519.9,3519.8,0.872]
[1718954743510,2.55873285,3519.9,3519.8,0.872]
[1718954745574,2.996,3519.5,3518.2,3.0]
[1718954745732,18.05189623,3519.9,3517.4,2.4005]
[1718954745733,1.4702,3519.1,3517.4,2.4005]
[1718954745915,2.996,3519.2,3518.2,0.872]
[1718954745916,1.4702,3518.9,3518.2,0.872]
[1718954746129,2.55887423,3518.8,3518.2,0.872]
[1718954746331,2.55887423,3518.7,3518.2,0.872]
[1718954746496,2.55887423,3518.6,3518.2,0.872]
[1718954746698,2.55887423,3518.5,3517.4,2.4005]
[1718954746937,2.55887423,3518.4,3518.3,0.872]
[1718954748223,6.55887423,3518.4,3518.3,0.872]
[1718954748465,6.06668208,3518.4,3518.3,0.872]
[1718954748729,6.55894545,3518.4,3518.3,0.872]
[1718954749892,2.55894545,3518.4,3518.3,0.872]
[1718954751667,2.55893491,3518.4,3518.3,0.872]
[1718954752206,2.55893556,3518.4,3518.3,0.872]
[1718954752963,2.55893298,3518.4,3518.3,0.872]
[1718954754653,2.06668208,3518.4,3518.3,0.872]
[1718954754729,0.49225415,3518.4,3518.3,0.872]
[1718954754898,2.06668208,3518.4,3518.3,0.872]
[1718954755237,2.3034,3519.3,3518.3,4.19236]
[1718954755434,2.55942427,3519.2,3518.8,0.872]
[1718954755736,4.0,3518.9,3518.8,0.872]
[1718954755914,2.55942427,3518.9,3518.8,0.872]
[1718954757038,2.55942427,3518.9,3518.3,3.32036]
[1718954757196,2.55942427,3518.8,3518.7,0.872]
[1718954757765,2.55943783,3518.8,3518.7,0.872]
[1718954760651,2.06722295,3518.8,3518.7,0.872]
[1718954760874,0.49221419,3518.8,3518.7,0.872]
[1718954761159,2.06722295,3519.1,3518.7,0.872]
[1718954761340,2.55943714,3519.0,3518.7,0.872]
[1718954761513,2.55943714,3518.9,3518.3,3.32036]
[1718954761857,2.06722295,3518.8,3518.4,0.565196]
[1718954762063,2.3157,3519.6,3518.7,0.872]
[1718954762342,2.55926448,3519.5,3519.1,0.872]
[1718954762504,4.0,3519.2,3519.1,0.872]
[1718954762707,2.55926448,3519.2,3519.1,0.872]
[1718954763212,2.55924634,3519.2,3519.1,0.872]
[1718954763518,2.55924634,3519.2,3518.9,3.872]
[1718954763841,2.55924634,3519.1,3518.9,5.03178445]
[1718954764146,2.06710384,3519.0,3518.9,5.03178445]
[1718954764327,2.06710384,3519.5,3518.9,3.872]
[1718954764536,2.55926621,3519.4,3518.9,3.872]
[1718954764758,2.55926621,3519.3,3518.9,3.872]
[1718954764930,2.3157,3519.6,3518.9,3.872]
[1718954764931,2.55926621,3519.2,3518.9,5.23045]
[1718954765134,2.55926621,3519.1,3518.9,5.23045]
[1718954765350,2.06710384,3519.0,3518.9,3.872]
[1718954765718,2.06710384,3519.5,3518.9,3.872]
[1718954765918,2.55926022,3519.4,3518.9,3.872]
[1718954766151,2.55926022,3519.3,3518.9,3.872]
[1718954766348,2.06710384,3519.2,3518.9,5.23045]
[1718954766656,2.55926153,3519.1,3518.9,3.872]
[1718954766822,2.55926153,3519.0,3518.9,0.872]
[1718954767659,2.55926153,3519.0,3518.7,0.872]
[1718954767957,2.55926153,3518.9,3518.7,1.41194]
[1718954768131,2.06710384,3518.8,3518.7,0.872]
[1718954768328,2.06710384,3519.5,3518.7,0.872]
[1718954768651,2.5592743,3519.4,3518.7,0.872]
[1718954768851,2.5592743,3519.3,3518.7,0.872]
[1718954769042,2.5592743,3519.2,3518.7,1.49914]
[1718954769232,2.5592743,3519.1,3518.7,1.49914]
[1718954769567,3.05144509,3519.0,3518.7,1.49914]
[1718954769730,2.55927452,3518.9,3518.7,0.872]
[1718954770004,2.06710384,3518.8,3518.7,0.872]
[1718954770543,0.49217065,3518.8,3518.7,0.872]
[1718954770717,2.55927449,3519.4,3518.7,0.872]
[1718954770918,2.55927449,3519.3,3518.7,0.872]
[1718954771170,2.55927449,3519.2,3518.7,0.872]
[1718954771467,2.55927449,3519.1,3518.7,1.49914]
[1718954771662,2.06710384,3519.0,3518.7,1.49914]
[1718954771963,0.49217065,3518.9,3518.7,1.49914]
[1718954772286,2.06710384,3518.8,3518.7,1.49914]
[1718954772438,2.55927449,3518.8,3518.7,1.49914]
[1718954772780,2.55927391,3518.8,3518.7,1.49914]
[1718954773643,0.49217007,3518.8,3518.7,1.49914]
[1718954773825,0.49217007,3519.5,3518.7,1.49914]
[1718954774029,2.06708198,3519.4,3518.9,0.872]
[1718954774232,0.49217007,3519.3,3518.9,0.872]
[1718954774538,2.06708198,3519.2,3518.9,0.872]
[1718954774746,2.06708198,3519.1,3518.9,0.872]
[1718954774958,2.55926051,3519.0,3518.9,0.872]
[1718954775801,2.55926154,3519.0,3518.9,0.872]
[1718954776443,2.55926154,3519.0,3518.6,3.0]
[1718954776771,2.55926154,3518.9,3518.6,0.872]
[1718954777070,2.55926154,3518.8,3518.6,0.872]
[1718954777282,2.55926154,3518.7,3518.6,0.872]
[1718954779184,2.55930405,3518.7,3518.6,0.872]
[1718954779485,2.55930405,3518.7,3518.6,1.2592]
[1718954779486,2.55927325,3518.7,3518.6,1.2592]
[1718954782074,2.06708198,3518.7,3518.6,1.2592]
[1718954782371,0.49218536,3518.7,3518.6,1.2592]
[1718954782586,2.55926734,3519.4,3518.6,1.2592]
[1718954782750,2.55926734,3519.3,3518.6,0.872]
[1718954782954,2.55926734,3519.2,3518.6,0.872]
[1718954783158,2.55926734,3519.1,3518.6,1.2592]
[1718954783356,2.55926734,3519.0,3518.6,0.872]
[1718954783659,2.55926734,3518.9,3518.6,0.872]
[1718954783856,2.06708198,3518.8,3518.6,0.872]
[1718954784058,0.49218536,3518.7,3518.6,1.2592]
[1718954784276,2.55926734,3518.7,3518.6,1.2592]
[1718954784477,0.872,3519.8,3518.6,3.6864]
[1718954784643,2.3874,3521.0,3519.7,0.872]
[1718954784987,0.23874,3520.9,3520.3,0.872]
[1718954785949,2.3874,3521.4,3520.5,0.872]
[1718954786456,2.3874,3521.4,3519.9,10.37]
[1718954786457,0.872,3521.3,3520.3,0.872]
[1718954786642,0.32594,3521.2,3520.3,0.872]
[1718954788695,0.32594,3521.2,3520.0,0.02491133]
[1718954788996,0.32594,3521.2,3520.4,0.872]
[1718954793005,3.2594,3521.4,3520.0,0.02491133]
[1718954793006,2.3874,3521.4,3520.8,0.872]
[1718954794725,0.49190479,3521.3,3520.8,0.872]
[1718954796891,0.49190479,3521.3,3520.9,2.4441]
[1718954797083,2.4492,3522.2,3521.2,0.872]
[1718954797309,2.4492,3522.2,3520.9,5.4441]
[1718954797310,0.49177662,3522.1,3522.0,0.872]
[1718954797514,2.4492,3522.7,3522.0,0.872]
[1718954797515,0.49177662,3522.6,3522.0,0.872]
[1718954797793,2.4492,3522.7,3521.8,0.872]
[1718954798284,0.49174984,3522.6,3521.8,0.872]
[1718954798450,0.29409498,3522.5,3521.8,0.872]
[1718954799549,0.29409498,3522.5,3521.2,2.094]
[1718954805451,0.29409498,3522.5,3520.5,2.2724]
[1718954805452,2.996,3522.0,3519.7,2.4593]
[1718954805695,2.2598,3521.7,3519.8,0.24593]
[1718954805885,2.54678967,3521.6,3520.0,2.094]
[1718954806063,0.49174898,3521.5,3520.0,2.094]
[1718954806375,2.2598,3521.7,3519.8,0.24593]
[1718954806376,0.49174898,3521.6,3520.4,2.094]
[1718954806899,2.2598,3521.7,3520.4,4.5374]
[1718954807271,0.49189148,3521.6,3520.4,4.5374]
[1718954807550,0.49189099,3521.6,3520.5,3.45374]
[1718954808175,0.49188664,3521.6,3520.5,3.45374]
[1718954808398,0.49188664,3521.6,3520.8,2.094]
[1718954808568,0.49188664,3522.0,3520.8,2.094]
[1718954808764,0.72208664,3522.0,3520.8,2.648774]
[1718954808998,0.72208664,3522.0,3520.9,3.0]
[1718954810217,0.2302,3522.0,3520.9,3.0]
[1718954810392,0.72207695,3522.0,3520.9,3.0]
[1718954811172,0.30240769,3521.9,3520.9,3.0]
[1718954813471,0.49186208,3522.0,3520.9,3.0]
[1718954814540,0.49186208,3522.0,3520.8,0.554774]
[1718954816505,0.49186739,3522.0,3520.8,0.554774]
[1718954816903,2.302,3522.1,3520.8,0.554774]
[1718954817145,2.54606495,3522.0,3520.8,0.554774]
[1718954817345,0.97667515,3521.9,3520.8,0.554774]
[1718954817629,0.49187447,3521.8,3520.8,0.554774]
[1718954817791,0.49187447,3522.0,3520.8,0.554774]
[1718954819351,2.05417104,3521.9,3520.8,0.554774]
[1718954819649,0.49187379,3521.8,3520.8,0.554774]
[1718954820358,0.48480455,3521.9,3520.8,0.554774]
[1718954820530,0.97667834,3521.9,3520.8,0.554774]
[1718954820732,0.48480455,3521.9,3520.8,0.554774]
[1718954820938,0.97667834,3521.9,3520.8,0.554774]
[1718954821130,0.48480455,3521.9,3520.9,0.3554774]
[1718954821334,0.49187379,3521.9,3520.9,0.3554774]
[1718954821575,1.36487379,3522.0,3521.0,0.873]
[1718954821726,2.05418669,3521.9,3521.0,0.873]
[1718954822067,0.49186814,3521.8,3521.0,0.873]
[1718954822544,0.49186814,3521.9,3521.0,0.873]
[1718954822868,2.05419025,3521.8,3521.0,0.873]
[1718954823065,0.49186814,3521.7,3521.0,0.873]
[1718954823443,0.80936814,3521.9,3521.0,0.873]
[1718954823643,2.05418745,3521.8,3521.1,2.3657]
[1718954823878,0.49186814,3521.7,3521.1,5.3657]
[1718954824303,0.49186814,3521.8,3521.1,5.3657]
[1718954824462,2.0541997,3521.7,3521.1,5.3657]
[1718954824687,2.54606784,3521.6,3521.1,5.3657]
[1718954824850,0.49186814,3521.5,3521.1,5.3657]
[1718954825180,0.49186757,3521.8,3521.1,5.3657]
[1718954825365,0.873,3521.9,3521.1,5.3657]
[1718954825366,2.05418434,3521.7,3521.1,5.3657]
[1718954825659,2.54605185,3521.6,3521.1,5.3657]
[1718954825979,0.49186751,3521.5,3521.1,5.3657]
[1718954826199,0.49187465,3521.8,3521.1,5.3657]
[1718954826351,2.05418853,3521.7,3521.1,5.3657]
[1718954826548,0.49187465,3521.6,3521.1,5.3657]
[1718954826882,2.05418853,3521.5,3521.1,2.3657]
[1718954827088,0.49187465,3521.4,3521.1,2.3657]
[1718954827461,0.873,3521.3,3521.1,2.3657]
[1718954827773,0.49187465,3521.2,3521.0,3.0]
[1718954828084,0.49187465,3521.2,3520.9,0.3554774]
[1718954828337,0.49187921,3521.2,3520.9,0.3554774]
[1718954828498,0.49187921,3521.2,3520.8,3.554774]
[1718954828679,0.873,3520.9,3520.8,3.0]
[1718954828851,1.36487921,3520.9,3520.6,3.0]
[1718954829048,0.873,3520.7,3520.6,3.0]
[1718954829395,3.41921495,3520.7,3520.6,3.0]
[1718954829551,3.41921495,3520.7,3520.3,2.2585]
[1718954829748,0.873,3520.5,3520.3,2.2585]
[1718954829953,0.34987921,3520.4,3520.3,2.2585]
[1718954830203,2.05441312,3520.4,3520.3,2.2585]
[1718954830499,2.40429233,3520.4,3520.3,2.2585]
[1718954831240,2.05441312,3520.4,3520.3,2.2585]
[1718954832121,2.05441312,3520.4,3520.1,3.0]
[1718954832469,2.02641312,3520.4,3520.1,3.0]
[1718954832878,2.02641312,3520.4,3519.8,2.4474]
[1718954834717,0.873,3520.3,3519.8,2.4474]
[1718954835009,0.873,3520.3,3519.9,1.28174]
[1718954835336,0.873,3520.3,3519.9,4.28174]
[1718954840113,0.4920171,3520.2,3519.9,4.28174]
[1718954842675,0.4920171,3520.3,3519.9,4.28174]
[1718954842883,0.873,3520.4,3520.0,0.44324045]
[1718954843221,0.49200737,3520.3,3520.0,0.44324045]
[1718954845225,0.873,3520.5,3520.0,0.44324045]
[1718954845402,0.49200737,3520.4,3520.0,0.44324045]
[1718954846106,0.873,3520.5,3520.0,0.44324045]
[1718954846308,0.4920069,3520.4,3520.0,0.44324045]
[1718954846623,0.49200692,3520.4,3520.0,0.44324045]
[1718954847398,0.49200961,3520.4,3520.0,0.44324045]
[1718954849460,0.4920017,3520.4,3520.0,0.44324045]
[1718954852640,2.02346762,3520.3,3520.0,0.44324045]
[1718954852834,0.49200368,3520.2,3520.0,0.44324045]
[1718954853042,2.02346762,3520.1,3520.0,0.44324045]
[1718954853333,2.5154713,3520.1,3520.0,0.44324045]
[1718954855348,4.9847713,3520.1,3519.6,7.37]
[1718954855651,2.02346762,3520.0,3519.6,7.37]
[1718954855835,0.873,3519.7,3519.6,7.37]
[1718954856187,2.89646762,3519.7,3519.6,7.37]
[1718954856356,3.38859962,3519.7,3519.6,7.37]
[1718954856566,7.38859962,3519.7,3519.6,7.37]
[1718954856919,6.51559962,3519.7,3519.6,7.37]
[1718954857140,7.38859962,3519.7,3519.6,7.37]
[1718954858736,7.38858351,3519.7,3519.6,7.37]
[1718954859520,7.38858351,3519.7,3519.1,2.2744]
[1718954859716,6.51558351,3519.6,3519.2,0.96444]
[1718954859955,2.51558351,3519.5,3519.2,0.96444]
[1718954860134,2.51558351,3519.4,3519.2,0.96444]
[1718954860336,2.51558351,3519.3,3519.2,0.96444]
[1718954861912,2.51558116,3519.3,3519.2,0.96444]
[1718954863144,0.49211354,3519.3,3519.2,0.96444]
[1718954863350,0.49211354,3519.5,3519.2,0.96444]
[1718954863532,2.02322802,3519.4,3519.2,0.96444]
[1718954863867,0.49211354,3519.3,3519.2,0.96444]
[1718954864219,0.49211354,3519.5,3519.2,0.96444]
[1718954864530,2.02327642,3519.4,3519.3,0.76054045]
[1718954864857,0.49211354,3519.4,3519.3,0.76054045]
[1718954865071,0.49208823,3519.4,3519.3,0.76054045]
[1718954865265,2.51538167,3519.5,3519.3,0.76054045]
[1718954865532,2.51537632,3519.4,3519.3,0.76054045]
[1718954866054,4.58212262,3519.4,3519.3,0.76054045]
[1718954866373,4.58212287,3519.4,3519.3,0.76054045]
[1718954866532,2.55882943,3519.4,3519.3,0.76054045]
[1718954868176,2.55886179,3519.4,3519.3,0.76054045]
[1718954869161,4.58219314,3519.4,3519.3,0.76054045]
[1718954871426,4.58215853,3519.4,3519.3,0.76054045]
[1718954871582,4.58215853,3519.4,3519.1,2.2744]
[1718954871752,2.06674503,3519.3,3519.1,2.2744]
[1718954871957,2.06674503,3519.2,3519.1,2.2744]
[1718954872474,2.06674503,3519.5,3519.1,2.2744]
[1718954872781,4.58217146,3519.4,3519.1,2.2744]
[1718954872926,4.09008905,3519.3,3519.1,2.2744]
[1718954873117,4.0,3519.6,3519.1,2.2744]
[1718954873118,2.06674503,3519.2,3519.1,2.2744]
[1718954873342,2.06674503,3519.2,3519.1,2.58914]
[1718954873584,2.06674503,3519.5,3519.1,2.58914]
[1718954873761,4.58217086,3519.4,3519.1,2.58914]
[1718954873973,4.58217086,3519.3,3519.2,0.346214]
[1718954874335,2.02334358,3519.3,3519.2,0.346214]
[1718954874540,2.55883283,3519.3,3519.2,0.346214]
[1718954874780,4.58217641,3519.3,3519.2,0.346214]
[1718954874969,2.5154279,3519.3,3519.2,0.346214]
[1718954875195,4.58218204,3519.3,3519.2,0.346214]
[1718954875728,4.58217346,3519.3,3519.2,0.346214]
[1718954877073,4.58220672,3519.3,3519.2,0.346214]
[1718954877588,2.02337684,3519.3,3519.2,0.346214]
[1718954877730,2.51545904,3519.3,3519.2,0.346214]
[1718954877937,4.58220432,3519.3,3519.2,0.346214]
[1718954880543,0.24643845,3519.3,3519.2,7.208894]
[1718954880751,3.3574,3521.2,3519.4,2.27305]
[1718954881107,2.55817573,3521.0,3520.3,3.1892]
[1718954881229,2.55817573,3520.9,3520.3,3.1892]
[1718954881431,0.33574,3521.1,3520.3,3.1892]
[1718954881432,2.55817573,3520.8,3520.3,3.1892]
[1718954881640,2.55817573,3520.7,3520.3,3.1892]
[1718954881870,0.33574,3521.1,3520.3,3.1892]
[1718954881871,2.55817573,3520.6,3520.3,3.1892]
[1718954882170,2.06621886,3520.5,3520.3,3.1892]
[1718954882361,2.06621886,3520.4,3520.3,3.1892]
[1718954882558,2.06621886,3520.4,3520.3,5.3162]
[1718954882750,2.06621886,3521.1,3520.3,6.1892]
[1718954883045,2.4844,3521.2,3520.3,3.1892]
[1718954883160,0.49190424,3521.0,3520.3,3.1892]
[1718954883339,2.06599781,3520.9,3520.3,3.1892]
[1718954883556,2.55790233,3520.8,3520.3,3.1892]
[1718954883752,2.55790233,3520.7,3520.3,3.1892]
[1718954883947,2.06599804,3520.6,3520.3,3.1892]
[1718954884182,3.3574,3521.2,3520.3,3.1892]
[1718954884371,2.55791093,3521.1,3520.3,4.51712]
[1718954884535,2.55791093,3521.0,3520.3,4.51712]
[1718954884735,2.55791093,3520.9,3520.3,4.51712]
[1718954884952,3.3574,3521.2,3520.3,4.51712]
[1718954884953,2.55791093,3520.8,3520.3,4.51712]
[1718954885147,2.06600507,3520.7,3520.4,0.36906045]
[1718954885378,2.06600507,3520.6,3520.4,0.36906045]
[1718954885567,3.3574,3521.2,3520.3,3.1612]
[1718954885774,2.55789618,3521.1,3520.3,3.1612]
[1718954885975,2.55789618,3521.0,3520.3,3.1612]
[1718954886223,2.06600093,3520.9,3520.3,3.1612]
[1718954886487,2.06600093,3520.8,3520.4,0.31612]
[1718954886692,2.06600093,3520.7,3520.4,0.31612]
[1718954886893,2.06600093,3520.6,3520.4,0.17412]
[1718954887056,2.4844,3521.2,3520.3,3.1612]
[1718954887383,2.55789313,3521.1,3520.3,3.1612]
[1718954887590,2.55789313,3521.0,3520.3,3.1612]
[1718954887767,2.55789313,3520.9,3520.4,0.31612]
[1718954887967,2.06599061,3520.8,3520.4,0.31612]
[1718954888173,2.06599061,3520.7,3520.4,0.31612]
[1718954888404,2.4844,3521.2,3520.4,0.31612]
[1718954888571,2.55789334,3521.1,3520.4,0.31612]
[1718954888759,2.55789334,3521.0,3520.4,0.31612]
[1718954888954,2.55789334,3520.9,3520.4,0.31612]
[1718954889208,2.4844,3521.2,3520.4,0.31612]
[1718954889209,2.06599078,3520.8,3520.4,0.31612]
[1718954889495,2.06599191,3520.7,3520.4,0.31612]
[1718954889702,3.3574,3521.2,3520.4,0.31612]
[1718954889869,3.3574,3521.2,3520.3,2.2882]
[1718954889870,2.55794107,3521.1,3520.3,2.2882]
[1718954890202,2.55794107,3521.0,3520.3,5.2882]
[1718954890401,2.55794107,3520.9,3520.3,5.2882]
[1718954890616,2.06602933,3520.8,3520.3,5.2882]
[1718954890775,2.06602933,3520.7,3520.3,5.2882]
[1718954890959,3.60584,3521.2,3520.3,5.2882]
[1718954891162,2.55790801,3521.1,3520.3,5.2882]
[1718954891474,2.55790801,3521.0,3520.3,5.2882]
[1718954891799,2.55790801,3520.9,3520.3,5.2882]
[1718954891952,2.06600274,3520.8,3520.3,5.2882]
[1718954892155,2.06600274,3520.7,3520.3,5.2882]
[1718954892408,3.3574,3521.2,3520.3,5.2882]
[1718954892551,2.55790971,3521.1,3520.3,5.2882]
[1718954892801,2.55790971,3521.0,3520.3,5.2882]
[1718954892975,2.0660032,3520.9,3520.3,5.2882]
[1718954893167,2.0660032,3520.8,3520.3,5.2882]
[1718954893378,2.0660032,3520.7,3520.3,5.2882]
[1718954893721,3.3574,3521.2,3520.3,5.2882]
[1718954893882,2.55793288,3521.1,3520.3,5.2882]
[1718954894220,2.55793288,3521.0,3520.3,5.2882]
[1718954894523,2.55793288,3520.9,3520.3,5.2882]
[1718954894691,2.06602271,3520.8,3520.3,5.2882]
[1718954894894,2.06602271,3520.7,3520.3,5.2882]
[1718954895079,3.3574,3521.2,3520.3,5.2882]
[1718954895281,2.55793217,3521.1,3520.3,5.2882]
[1718954895634,3.69314,3521.2,3520.3,5.2882]
[1718954895832,2.5579319,3521.1,3520.3,5.2882]
[1718954895992,2.5579319,3521.0,3520.3,5.2882]
[1718954896197,0.873,3520.4,3520.0,7.37]